[Event "Championnat du monde jeunes U12F"]
[Date "2024.11.20"]
[White "Abylaykyzy, Bibisara"]
[Black "Bassari, Senem Gul"]
[WhiteElo "1694"]
[BlackElo "1778"]
[Round "6.16"]
[Result "0-1"]
[TimeControl "5400+30"]

1. e4 {[%clk 1:30:57]} 1... c5 {[%clk 1:30:52]} 2. Nf3 {[%clk 1:31:23]} 2... d6
{[%clk 1:31:17]} 3. d4 {[%clk 1:31:49]} 3... cxd4 {[%clk 1:31:43]} 4. Nxd4
{[%clk 1:32:11]} 4... Nf6 {[%clk 1:32:09]} 5. Nc3 {[%clk 1:32:35]} 5... a6
{[%clk 1:32:36]} 6. Be2 {[%clk 1:33:01]} 6... e5 {[%clk 1:33:00]} 7. Nb3 {[%clk
1:33:27]} 7... Be6 {[%clk 1:33:19]} 8. Be3 {[%clk 1:33:53]} 8... Nbd7 {[%clk
1:33:12]} 9. O-O {[%clk 1:29:53]} 9... Be7 {[%clk 1:33:23]} 10. f3 {[%clk
1:27:18]} 10... O-O {[%clk 1:33:45]} 11. Nd5 {[%clk 1:27:45]} 11... Nxd5 {[%clk
1:32:48]} 12. exd5 {[%clk 1:27:58]} 12... Bf5 {[%clk 1:33:14]} 13. c4 {[%clk
1:27:31]} 13... Rc8 {[%clk 1:32:21]} 14. Qd2 {[%clk 1:26:48]} 14... Bg6 {[%clk
1:28:38]} 15. Na5 {[%clk 1:26:24]} 15... Qc7 {[%clk 1:27:40]} 16. b4 {[%clk
1:26:35]} 16... f5 {[%clk 1:25:29]} 17. Rac1 {[%clk 1:19:58]} 17... f4 {[%clk
1:18:35]} 18. Bf2 {[%clk 1:20:08]} 18... Rfd8 {[%clk 0:51:29]} 19. Rfd1 {[%clk
1:18:01]} 19... Nf6 {[%clk 0:43:09]} 20. a4 {[%clk 0:56:47]} 20... Bf7 {[%clk
0:33:39]} 21. Nb3 {[%clk 0:56:59]} 21... Qd7 {[%clk 0:29:31]} 22. b5 {[%clk
0:50:30]} 22... axb5 {[%clk 0:25:05]} 23. axb5 {[%clk 0:50:52]} 23... Kh8 {[%clk
0:24:04]} 24. Ra1 {[%clk 0:51:11]} 24... g5 {[%clk 0:21:48]} 25. Ra7 {[%clk
0:49:47]} 25... Rg8 {[%clk 0:11:56]} 26. Na5 {[%clk 0:50:12]} 26... Rb8 {[%clk
0:11:12]} 27. Nc6 {[%clk 0:44:38]} 27... Rbe8 {[%clk 0:07:19]} 28. Nxe7 {[%clk
0:31:09]} 28... Rxe7 {[%clk 0:03:53]} 29. Qb4 {[%clk 0:20:01]} 29... g4 {[%clk
0:03:15]} 30. Bh4 {[%clk 0:20:17]} 30... Rg6 {[%clk 0:02:29]} 31. Bd3 {[%clk
0:19:16]} 31... Rh6 {[%clk 0:00:38]} 32. Bg5 {[%clk 0:19:38]} 32... Kg7 {[%clk
0:00:39]} 33. Bxh6+ {[%clk 0:19:57]} 33... Kxh6 {[%clk 0:01:06]} 34. Qe1 {[%clk
0:20:15]} 34... Kg7 {[%clk 0:00:40]} 35. Qh4 {[%clk 0:19:03]} 35... h6 {[%clk
0:00:35]} 36. Qf2 {[%clk 0:14:43]} 36... Kh8 {[%clk 0:00:32]} 37. Rda1 {[%clk
0:15:01]} 37... Kg7 {[%clk 0:00:48]} 38. Qc2 {[%clk 0:12:15]} 38... Qc7 {[%clk
0:00:38]} 39. Qf2 {[%clk 0:10:52]} 39... Qd7 {[%clk 0:00:35]} 40. b6 {[%clk
0:11:16]} 40... Re8 {[%clk 0:00:33]} 41. Qc2 {[%clk 0:10:19]} 41... g3 {[%clk
0:00:33]} 42. hxg3 {[%clk 0:10:15]} 42... fxg3 {[%clk 0:00:45]} 43. Bf5 {[%clk
0:09:39]} 43... Qe7 {[%clk 0:00:52]} 44. Ra8 {[%clk 0:09:49]} 44... Nh5 {[%clk
0:00:46]} 45. Rxe8 {[%clk 0:09:58]} 45... Bxe8 {[%clk 0:00:53]} 46. Ra7 {[%clk
0:09:58]} 46... Kh8 {[%clk 0:00:36]} 47. Qd2 {[%clk 0:08:55]} 47... Nf4 {[%clk
0:00:52]} 48. Ra8 {[%clk 0:06:09]} 48... Kg7 {[%clk 0:00:47]} 49. Ra3 {[%clk
0:04:41]} 49... Qg5 {[%clk 0:00:40]} 50. Qc2 {[%clk 0:04:12]} 50... Qh4 {[%clk
0:00:36]} 51. Bh3 {[%clk 0:04:09]} 51... Bg6 {[%clk 0:00:38]} 52. Qd2 {[%clk
0:03:57]} 52... Bf5 {[%clk 0:00:35]} 53. Ra7 {[%clk 0:02:46]} 53... Bc8 {[%clk
0:00:34]} 54. c5 {[%clk 0:02:27]} 54... Qg5 {[%clk 0:00:35]} 55. Ra2 {[%clk
0:01:10]} 55... Bxh3 {[%clk 0:00:34]} 56. gxh3 {[%clk 0:01:30]} 56... Nxh3+
{[%clk 0:00:37]} 57. Kf1 {[%clk 0:00:32]} 57... Nf4 {[%clk 0:00:41]} 58. Qe3
{[%clk 0:00:34]} 58... g2+ {[%clk 0:00:38]} 59. Rxg2 {[%clk 0:00:35]} 59...
Qxg2+ {[%clk 0:01:07]} 60. Ke1 {[%clk 0:00:56]} 60... Qc2 {[%clk 0:00:47]} 61.
cxd6 {[%clk 0:01:00]} 61... Ng2+ {[%clk 0:01:10]} 0-1

[Variant "Standard"]
[Site "Europe Echecs"]

[Event "Championnat du monde jeunes U12F"]
[Date "2024.11.20"]
[White "Huang, Lucia"]
[Black "Aadya Ranganath"]
[WhiteElo "1621"]
[BlackElo "1753"]
[Round "6.17"]
[Result "0-1"]
[TimeControl "5400+30"]

1. e4 {[%clk 1:30:59]} 1... e5 {[%clk 1:30:55]} 2. Nf3 {[%clk 1:31:26]} 2... Nc6
{[%clk 1:31:21]} 3. Bc4 {[%clk 1:31:51]} 3... Bc5 {[%clk 1:31:46]} 4. O-O {[%clk
1:32:16]} 4... Nf6 {[%clk 1:32:10]} 5. d3 {[%clk 1:32:41]} 5... h6 {[%clk
1:32:28]} 6. c3 {[%clk 1:33:03]} 6... a6 {[%clk 1:32:44]} 7. a4 {[%clk 1:33:12]}
7... d6 {[%clk 1:31:19]} 8. h3 {[%clk 1:33:28]} 8... O-O {[%clk 1:31:20]} 9. Be3
{[%clk 1:32:02]} 9... Bxe3 {[%clk 1:29:32]} 10. fxe3 {[%clk 1:32:13]} 10... Ne7
{[%clk 1:26:40]} 11. Na3 {[%clk 1:24:05]} 11... Ng6 {[%clk 1:20:59]} 12. Qe1
{[%clk 1:18:52]} 12... c6 {[%clk 1:16:49]} 13. Ba2 {[%clk 1:13:39]} 13... d5
{[%clk 1:13:00]} 14. exd5 {[%clk 1:10:52]} 14... cxd5 {[%clk 1:11:50]} 15. Rd1
{[%clk 1:00:30]} 15... Bd7 {[%clk 1:06:20]} 16. b3 {[%clk 0:59:46]} 16... b5
{[%clk 1:05:02]} 17. Bb1 {[%clk 0:49:50]} 17... bxa4 {[%clk 1:03:57]} 18. bxa4
{[%clk 0:50:07]} 18... Bxa4 {[%clk 1:03:58]} 19. Bc2 {[%clk 0:49:20]} 19... Bxc2
{[%clk 1:02:05]} 20. Nxc2 {[%clk 0:49:42]} 20... a5 {[%clk 1:00:50]} 21. Ra1
{[%clk 0:49:59]} 21... Qc7 {[%clk 0:59:21]} 22. Na3 {[%clk 0:48:16]} 22... Rfc8
{[%clk 0:54:12]} 23. c4 {[%clk 0:44:12]} 23... dxc4 {[%clk 0:49:47]} 24. dxc4
{[%clk 0:44:06]} 24... Rd8 {[%clk 0:47:30]} 25. Qc3 {[%clk 0:39:52]} 25... Nd5
{[%clk 0:44:58]} 26. Qc1 {[%clk 0:37:53]} 26... Nb4 {[%clk 0:44:25]} 27. Rd1
{[%clk 0:29:22]} 27... Rxd1+ {[%clk 0:42:02]} 28. Qxd1 {[%clk 0:29:44]} 28...
Rd8 {[%clk 0:41:19]} 29. Qe2 {[%clk 0:28:53]} 29... Qc5 {[%clk 0:39:59]} 30. Kh2
{[%clk 0:22:59]} 30... Rd3 {[%clk 0:38:41]} 31. e4 {[%clk 0:20:17]} 31... Re3
{[%clk 0:36:48]} 32. Qf2 {[%clk 0:20:23]} 32... Nd3 {[%clk 0:37:05]} 33. Qd2
{[%clk 0:19:20]} 33... Ngf4 {[%clk 0:37:01]} 34. Nb5 {[%clk 0:16:47]} 34... Re2
{[%clk 0:37:04]} 35. Qc2 0-1

[Variant "Standard"]
[Site "Europe Echecs"]

[Event "Championnat du monde jeunes U12F"]
[Date "2024.11.20"]
[White "Baruch, Amit"]
[Black "Sevastsyanchuk, Anastasiya"]
[WhiteElo "1747"]
[BlackElo "1595"]
[Round "6.18"]
[Result "0-1"]
[TimeControl "5400+30"]

1. e4 {[%clk 1:30:58]} 1... c6 {[%clk 1:30:55]} 2. d4 {[%clk 1:31:21]} 2... d5
{[%clk 1:31:21]} 3. exd5 cxd5 {[%clk 1:31:45]} 4. c4 {[%clk 1:32:06]} 4... Nf6
{[%clk 1:32:08]} 5. Nc3 {[%clk 1:32:30]} 5... e6 {[%clk 1:32:28]} 6. Nf3 {[%clk
1:32:33]} 6... Bb4 {[%clk 1:32:45]} 7. cxd5 {[%clk 1:32:44]} 7... Nxd5 {[%clk
1:32:59]} 8. Bd2 {[%clk 1:32:42]} 8... O-O {[%clk 1:33:10]} 9. Bd3 {[%clk
1:32:40]} 9... b6 {[%clk 1:33:05]} 10. O-O {[%clk 1:29:08]} 10... Bb7 {[%clk
1:33:19]} 11. Ng5 {[%clk 1:11:30]} 11... h6 {[%clk 1:32:11]} 12. Nge4 {[%clk
0:59:11]} 12... Nc6 {[%clk 1:23:15]} 13. Nxd5 {[%clk 0:53:49]} 13... Qxd5 {[%clk
1:23:18]} 14. Bxh6 {[%clk 0:53:14]} 14... Qxd4 {[%clk 1:19:37]} 15. Qg4 {[%clk
0:52:00]} 15... f5 {[%clk 1:14:46]} 16. Qg6 {[%clk 0:47:31]} 16... fxe4 {[%clk
1:13:01]} 17. Bxe4 {[%clk 0:46:07]} 17... Qf6 {[%clk 1:08:14]} 18. Qh7+ {[%clk
0:42:24]} 18... Kf7 {[%clk 1:08:36]} 19. Bxg7 {[%clk 0:37:47]} 19... Qxg7 {[%clk
1:08:50]} 20. Qh5+ {[%clk 0:36:58]} 20... Kg8 {[%clk 1:06:45]} 21. a3 {[%clk
0:32:20]} 21... Bc5 {[%clk 1:06:11]} 22. Rae1 {[%clk 0:28:45]} 22... Rf6 {[%clk
1:02:12]} 23. b4 {[%clk 0:27:34]} 23... Bd6 {[%clk 0:55:15]} 24. g3 {[%clk
0:19:18]} 24... Raf8 {[%clk 0:53:10]} 25. Rd1 {[%clk 0:17:14]} 25... Bb8 {[%clk
0:52:12]} 26. Qe2 {[%clk 0:12:48]} 26... Ne5 {[%clk 0:52:05]} 27. Kg2 {[%clk
0:09:47]} 27... Rf4 {[%clk 0:45:39]} 28. f3 {[%clk 0:08:19]} 28... Bxe4 {[%clk
0:28:57]} 29. fxe4 {[%clk 0:08:42]} 29... Nf3 {[%clk 0:27:48]} 30. Kh1 {[%clk
0:08:15]} 30... Nd4 {[%clk 0:27:29]} 31. Qc4 {[%clk 0:07:34]} 31... Rxf1+ {[%clk
0:27:45]} 32. Rxf1 {[%clk 0:07:56]} 32... Rxf1+ {[%clk 0:28:11]} 33. Qxf1 {[%clk
0:08:18]} 33... Qg4 {[%clk 0:28:34]} 34. Kg1 {[%clk 0:07:54]} 34... Qxe4 {[%clk
0:28:31]} 35. Qf6 {[%clk 0:07:45]} 35... Qe3+ {[%clk 0:28:26]} 36. Kg2 {[%clk
0:07:57]} 36... Qf3+ {[%clk 0:27:35]} 37. Qxf3 {[%clk 0:08:18]} 37... Nxf3
{[%clk 0:28:00]} 38. Kxf3 {[%clk 0:08:42]} 38... b5 {[%clk 0:28:27]} 39. Ke4
{[%clk 0:06:51]} 39... Kf7 {[%clk 0:28:37]} 40. Kd4 {[%clk 0:04:24]} 40... Bd6
{[%clk 0:28:41]} 41. g4 {[%clk 0:04:04]} 41... Bxh2 {[%clk 0:28:38]} 42. Kc5
{[%clk 0:04:18]} 42... a6 {[%clk 0:29:04]} 43. Kb6 {[%clk 0:03:38]} 43... e5
{[%clk 0:29:06]} 0-1

[Variant "Standard"]
[Site "Europe Echecs"]

[Event "Championnat du monde jeunes U12F"]
[Date "2024.11.20"]
[White "Stepankova, Linda"]
[Black "Sabou, Stefania Theodora"]
[WhiteElo "1624"]
[BlackElo "1736"]
[Round "6.19"]
[Result "0-1"]
[TimeControl "5400+30"]

1. e4 {[%clk 1:30:56]} 1... c5 {[%clk 1:30:48]} 2. Nf3 {[%clk 1:31:20]} 2... Nc6
{[%clk 1:31:04]} 3. d4 {[%clk 1:31:45]} 3... cxd4 {[%clk 1:31:27]} 4. Nxd4
{[%clk 1:31:53]} 4... g6 {[%clk 1:31:36]} 5. Nc3 {[%clk 1:32:00]} 5... Bg7
{[%clk 1:31:52]} 6. Be3 {[%clk 1:32:04]} 6... Nf6 {[%clk 1:32:11]} 7. f3 {[%clk
1:27:21]} 7... O-O {[%clk 1:31:40]} 8. Qd2 {[%clk 1:24:42]} 8... d5 {[%clk
1:30:54]} 9. Nxc6 {[%clk 1:04:33]} 9... bxc6 {[%clk 1:30:53]} 10. Bh6 {[%clk
0:58:39]} 10... e5 {[%clk 1:18:03]} 11. Bxg7 {[%clk 0:56:57]} 11... Kxg7 {[%clk
1:18:26]} 12. exd5 {[%clk 0:46:28]} 12... cxd5 {[%clk 1:18:47]} 13. Be2 {[%clk
0:42:52]} 13... d4 {[%clk 1:16:28]} 14. Nd1 {[%clk 0:37:43]} 14... e4 {[%clk
1:10:51]} 15. O-O {[%clk 0:32:31]} 15... e3 {[%clk 1:10:12]} 16. Qe1 {[%clk
0:28:45]} 16... Bf5 {[%clk 1:08:12]} 17. Rc1 {[%clk 0:26:00]} 17... Rc8 {[%clk
1:05:49]} 18. Ba6 {[%clk 0:12:36]} 18... Rxc2 {[%clk 1:04:29]} 19. Rxc2 {[%clk
0:12:59]} 19... Bxc2 {[%clk 1:04:49]} 20. Qe2 {[%clk 0:12:26]} 20... Bf5 {[%clk
1:02:28]} 21. b3 {[%clk 0:12:05]} 21... Qb6 {[%clk 1:01:33]} 22. Nb2 {[%clk
0:12:05]} 22... Nd5 {[%clk 0:59:03]} 23. Bc4 {[%clk 0:08:28]} 23... Nc3 {[%clk
0:58:02]} 24. Qe1 {[%clk 0:08:34]} 24... Re8 {[%clk 0:53:02]} 25. Nd3 {[%clk
0:04:55]} 25... Bxd3 {[%clk 0:53:11]} 26. Bxd3 {[%clk 0:05:14]} 26... Qe6 {[%clk
0:51:57]} 27. Bc4 {[%clk 0:04:55]} 27... Qe7 {[%clk 0:51:18]} 28. a4 {[%clk
0:03:28]} 28... Kg8 {[%clk 0:49:33]} 29. g3 {[%clk 0:02:46]} 29... e2 {[%clk
0:48:56]} 30. Rf2 {[%clk 0:02:55]} 30... Qe3 {[%clk 0:49:14]} 31. Kg2 {[%clk
0:02:46]} 31... d3 {[%clk 0:48:45]} 32. Qxc3 {[%clk 0:02:20]} 32... e1=Q {[%clk
0:48:30]} 33. Bxf7+ {[%clk 0:01:44]} 33... Kxf7 {[%clk 0:48:36]} 34. Qc7+ {[%clk
0:01:54]} 34... Kg8 {[%clk 0:47:21]} 35. Qc4+ {[%clk 0:02:07]} 35... Kh8 {[%clk
0:47:40]} 36. Ra2 {[%clk 0:01:45]} 36... Q1g1+ {[%clk 0:47:22]} 37. Kh3 {[%clk
0:01:59]} 37... Qh6+ {[%clk 0:47:32]} 0-1

[Variant "Standard"]
[Site "Europe Echecs"]

[Event "Championnat du monde jeunes U12F"]
[Date "2024.11.20"]
[White "Xu, Melissa"]
[Black "Telyuk, Anastasiya"]
[WhiteElo "1731"]
[BlackElo "1603"]
[Round "6.20"]
[Result "0-1"]
[TimeControl "5400+30"]

1. e4 {[%clk 1:30:57]} 1... c5 {[%clk 1:30:54]} 2. Nc3 {[%clk 1:31:22]} 2... Nc6
{[%clk 1:30:58]} 3. g3 {[%clk 1:31:38]} 3... e6 {[%clk 1:31:02]} 4. Bg2 {[%clk
1:29:50]} 4... Nf6 {[%clk 1:30:53]} 5. Nge2 {[%clk 1:28:32]} 5... Be7 {[%clk
1:27:51]} 6. d3 {[%clk 1:24:31]} 6... O-O {[%clk 1:26:53]} 7. O-O {[%clk
1:24:40]} 7... a6 8. a4 {[%clk 1:23:31]} 8... Qc7 {[%clk 1:21:43]} 9. f4 {[%clk
1:21:57]} 9... d6 {[%clk 1:20:47]} 10. Kh1 {[%clk 1:17:43]} 10... Rd8 {[%clk
1:16:35]} 11. d4 {[%clk 1:15:07]} 11... cxd4 {[%clk 1:16:35]} 12. Nxd4 {[%clk
1:15:26]} 12... Bd7 {[%clk 1:10:11]} 13. Nb3 {[%clk 1:10:09]} 13... Rac8 {[%clk
1:00:33]} 14. Be3 {[%clk 1:07:29]} 14... b6 {[%clk 0:57:31]} 15. Qe2 {[%clk
1:03:21]} 15... Ra8 {[%clk 0:50:47]} 16. Rfd1 {[%clk 0:56:05]} 16... Be8 {[%clk
0:39:32]} 17. Bf3 {[%clk 0:50:05]} 17... Nd7 {[%clk 0:37:11]} 18. Qf2 {[%clk
0:44:42]} 18... Nc5 {[%clk 0:34:36]} 19. Nd4 {[%clk 0:41:23]} 19... Bf6 {[%clk
0:29:52]} 20. h4 {[%clk 0:35:22]} 20... Nxd4 {[%clk 0:26:53]} 21. Bxd4 {[%clk
0:35:33]} 21... Bxd4 {[%clk 0:27:04]} 22. Rxd4 {[%clk 0:31:58]} 22... Rac8
{[%clk 0:21:41]} 23. h5 {[%clk 0:29:30]} 23... h6 {[%clk 0:21:43]} 24. g4 {[%clk
0:27:17]} 24... e5 {[%clk 0:19:00]} 25. fxe5 {[%clk 0:26:30]} 25... dxe5 {[%clk
0:19:10]} 26. Rxd8 {[%clk 0:24:07]} 26... Qxd8 {[%clk 0:18:00]} 27. Rd1 {[%clk
0:23:03]} 27... Qg5 {[%clk 0:15:16]} 28. Ra1 {[%clk 0:19:22]} 28... a5 {[%clk
0:12:04]} 29. Nd5 {[%clk 0:17:00]} 29... Bc6 {[%clk 0:09:40]} 30. Nxb6 {[%clk
0:13:07]} 30... Nxe4 {[%clk 0:02:07]} 31. Qg2 {[%clk 0:12:05]} 31... Qf4 {[%clk
0:00:41]} 32. Nxc8 {[%clk 0:05:55]} 32... Ng3+ {[%clk 0:00:55]} 33. Kg1 {[%clk
0:03:11]} 33... Bxf3 {[%clk 0:01:16]} 34. Qf2 {[%clk 0:02:55]} 34... Qxg4 {[%clk
0:01:06]} 35. Qh2 {[%clk 0:02:19]} 35... Qd4+ {[%clk 0:00:50]} 36. Qf2 {[%clk
0:02:26]} 36... Qg4 {[%clk 0:01:17]} 37. Qh2 {[%clk 0:02:48]} 37... Nf5+ {[%clk
0:00:52]} 38. Kf2 {[%clk 0:02:03]} 38... Be4 {[%clk 0:00:37]} 39. Ke1 {[%clk
0:01:23]} 39... Nd4 {[%clk 0:00:44]} 40. Qf2 {[%clk 0:01:12]} 40... Nxc2+ {[%clk
0:00:50]} 41. Kf1 {[%clk 0:01:23]} 41... Bd3+ {[%clk 0:01:11]} 0-1

[Variant "Standard"]
[Site "Europe Echecs"]

[Event "Championnat du monde jeunes U12F"]
[Date "2024.11.20"]
[White "Gailevska, Milana"]
[Black "Sunea, Sara Maria"]
[WhiteElo "1698"]
[BlackElo "1823"]
[Round "6.21"]
[Result "1-0"]
[TimeControl "5400+30"]

1. d4 {[%clk 1:30:57]} 1... d5 {[%clk 1:30:51]} 2. Bf4 {[%clk 1:31:20]} 2... c5
{[%clk 1:31:10]} 3. c3 {[%clk 1:31:44]} 3... Nc6 {[%clk 1:31:26]} 4. e3 {[%clk
1:32:06]} 4... Nf6 {[%clk 1:31:44]} 5. Nf3 {[%clk 1:32:13]} 5... Nh5 {[%clk
1:32:04]} 6. Bg5 {[%clk 1:32:26]} 6... h6 {[%clk 1:32:22]} 7. Bh4 {[%clk
1:32:39]} 7... g5 {[%clk 1:32:29]} 8. Bg3 {[%clk 1:32:56]} 8... Nxg3 {[%clk
1:32:51]} 9. hxg3 {[%clk 1:33:18]} 9... Bg7 {[%clk 1:26:58]} 10. dxc5 {[%clk
1:27:56]} 10... Bg4 {[%clk 1:23:03]} 11. Be2 {[%clk 1:27:21]} 11... e6 {[%clk
1:18:43]} 12. Nd4 {[%clk 1:23:11]} 12... Bxe2 {[%clk 1:16:03]} 13. Qxe2 {[%clk
1:19:54]} 13... Qe7 {[%clk 1:09:44]} 14. Qb5 {[%clk 1:12:50]} 14... Rc8 {[%clk
1:04:49]} 15. Nd2 {[%clk 1:08:32]} 15... O-O {[%clk 1:03:39]} 16. N2f3 {[%clk
1:07:03]} 16... g4 {[%clk 0:58:59]} 17. Nd2 {[%clk 1:05:40]} 17... a6 {[%clk
0:57:42]} 18. Qe2 {[%clk 1:05:15]} 18... f5 {[%clk 0:51:54]} 19. f3 {[%clk
1:01:37]} 19... Ne5 {[%clk 0:47:15]} 20. c6 {[%clk 0:57:48]} 20... gxf3 {[%clk
0:34:23]} 21. gxf3 {[%clk 0:57:06]} 21... Nxc6 {[%clk 0:34:31]} 22. N2b3 {[%clk
0:54:55]} 22... e5 {[%clk 0:32:23]} 23. Nxc6 {[%clk 0:55:02]} 23... Rxc6 {[%clk
0:32:04]} 24. O-O-O {[%clk 0:52:16]} 24... Qf7 {[%clk 0:27:37]} 25. f4 {[%clk
0:46:43]} 25... b5 {[%clk 0:23:21]} 26. Kb1 {[%clk 0:46:25]} 26... Rg6 {[%clk
0:17:25]} 27. Qf3 {[%clk 0:43:36]} 27... Rd8 {[%clk 0:14:17]} 28. Rhf1 {[%clk
0:41:47]} 28... e4 {[%clk 0:14:12]} 29. Qf2 {[%clk 0:41:35]} 29... Bf8 {[%clk
0:10:11]} 30. Rg1 {[%clk 0:38:40]} 30... b4 {[%clk 0:08:16]} 31. cxb4 {[%clk
0:37:23]} 31... Bxb4 {[%clk 0:08:34]} 32. Qe2 {[%clk 0:37:06]} 32... Qd7 {[%clk
0:06:03]} 33. Qh5 {[%clk 0:34:32]} 33... Kh7 {[%clk 0:06:08]} 34. Rg2 {[%clk
0:32:36]} 34... a5 {[%clk 0:02:52]} 35. Rdg1 {[%clk 0:32:17]} 35... Rg4 {[%clk
0:01:10]} 36. Rh1 {[%clk 0:31:39]} 36... Rg6 {[%clk 0:01:25]} 37. Rc1 {[%clk
0:27:17]} 37... Rf8 {[%clk 0:01:14]} 38. Rgc2 {[%clk 0:26:44]} 38... Rg7 {[%clk
0:01:02]} 39. Rc6 {[%clk 0:26:44]} 39... Bd6 {[%clk 0:01:16]} 40. Nd4 {[%clk
0:24:35]} 40... Rf6 {[%clk 0:01:08]} 41. Nb5 {[%clk 0:24:21]} 41... Be5 {[%clk
0:01:10]} 42. R6c5 {[%clk 0:19:04]} 42... Bb8 {[%clk 0:00:57]} 43. Rd1 {[%clk
0:17:21]} 43... Qf7 {[%clk 0:01:16]} 44. Qh3 {[%clk 0:14:31]} 44... Qg6 {[%clk
0:01:17]} 45. Rdxd5 {[%clk 0:13:49]} 45... Qxg3 {[%clk 0:01:36]} 46. Qxg3 {[%clk
0:14:03]} 46... Rxg3 {[%clk 0:02:05]} 47. Rc8 {[%clk 0:12:32]} 47... Rg8 {[%clk
0:02:07]} 48. Rd7+ {[%clk 0:10:25]} 48... Kh8 {[%clk 0:02:36]} 49. Rdd8 {[%clk
0:09:56]} 49... Rxd8 {[%clk 0:01:58]} 50. Rxd8+ {[%clk 0:10:20]} 50... Kg7
{[%clk 0:02:25]} 51. Rxb8 {[%clk 0:10:35]} 51... h5 {[%clk 0:02:54]} 52. Rc8
{[%clk 0:09:50]} 52... h4 {[%clk 0:03:10]} 53. Rc2 {[%clk 0:08:56]} 53... Kh6
{[%clk 0:03:20]} 54. Rg2 {[%clk 0:07:58]} 54... Rg6 {[%clk 0:02:31]} 55. Rh2
{[%clk 0:07:08]} 55... Kh5 {[%clk 0:02:38]} 56. Nd4 {[%clk 0:05:03]} 56... Rg1+
{[%clk 0:03:01]} 57. Kc2 {[%clk 0:05:23]} 57... Kg4 {[%clk 0:03:26]} 58. Nxf5
{[%clk 0:04:07]} 58... h3 {[%clk 0:02:35]} 59. Nd4 {[%clk 0:03:14]} 59... Rg2+
{[%clk 0:02:01]} 60. Rxg2+ {[%clk 0:03:36]} 60... hxg2 {[%clk 0:02:30]} 61. Ne2
{[%clk 0:03:53]} 61... Kf3 {[%clk 0:02:51]} 62. Kd2 {[%clk 0:04:14]} 62... Kg4
{[%clk 0:02:33]} 63. b3 {[%clk 0:04:24]} 63... Kf5 {[%clk 0:02:52]} 64. Ke1
{[%clk 0:04:35]} 64... Kg4 {[%clk 0:03:16]} 65. Kf2 {[%clk 0:04:56]} 1-0

[Variant "Standard"]
[Site "Europe Echecs"]

[Event "Championnat du monde jeunes U12F"]
[Date "2024.11.20"]
[White "Chichinadze, Anastasia"]
[Black "Jacome Revelo, Daniela Alexandra"]
[WhiteElo "1682"]
[BlackElo "1764"]
[Round "6.22"]
[Result "1-0"]
[TimeControl "5400+30"]

1. e4 {[%clk 1:30:58]} 1... c5 {[%clk 1:30:42]} 2. Nc3 {[%clk 1:31:25]} 2... g6
{[%clk 1:30:36]} 3. g3 {[%clk 1:31:48]} 3... Bg7 {[%clk 1:30:09]} 4. Bg2 {[%clk
1:32:10]} 4... Nc6 {[%clk 1:29:29]} 5. d3 {[%clk 1:32:34]} 5... e6 {[%clk
1:28:47]} 6. Be3 {[%clk 1:32:56]} 6... b6 {[%clk 1:27:29]} 7. Nge2 {[%clk
1:30:17]} 7... Nge7 {[%clk 1:25:40]} 8. Qd2 {[%clk 1:28:45]} 8... h5 {[%clk
1:23:05]} 9. h4 {[%clk 1:28:17]} 9... d5 {[%clk 1:21:09]} 10. exd5 {[%clk
1:28:06]} 10... exd5 {[%clk 1:20:45]} 11. d4 {[%clk 1:25:37]} 11... c4 {[%clk
1:14:42]} 12. Nf4 {[%clk 1:21:39]} 12... Be6 {[%clk 1:12:43]} 13. Nxe6 {[%clk
1:21:09]} 13... fxe6 {[%clk 1:12:59]} 14. Ne2 {[%clk 1:18:14]} 14... Nf5 {[%clk
1:08:53]} 15. c3 {[%clk 1:11:10]} 15... Nxe3 {[%clk 1:07:28]} 16. Qxe3 {[%clk
1:11:18]} 16... Qd6 {[%clk 1:01:29]} 17. Nf4 {[%clk 1:08:25]} 17... Kf7 {[%clk
0:59:51]} 18. Qf3 Bf6 {[%clk 0:51:06]} 19. Nxd5 {[%clk 0:52:37]} 19... exd5
{[%clk 0:36:10]} 20. Qxd5+ {[%clk 0:53:02]} 20... Ke7 {[%clk 0:34:00]} 21. Qxc6
{[%clk 0:53:18]} 21... Qxc6 {[%clk 0:33:24]} 22. Bxc6 {[%clk 0:53:35]} 22...
Rac8 {[%clk 0:31:57]} 23. d5 {[%clk 0:53:45]} 23... Kd6 {[%clk 0:31:34]} 24. Kd2
{[%clk 0:53:53]} 24... Rc7 {[%clk 0:31:35]} 25. Rhe1 {[%clk 0:54:12]} 25... Re7
{[%clk 0:29:56]} 26. Rxe7 {[%clk 0:54:23]} 26... Kxe7 {[%clk 0:28:34]} 27. Re1+
{[%clk 0:54:45]} 27... Kd8 {[%clk 0:27:30]} 28. Re4 {[%clk 0:53:07]} 28... a6
{[%clk 0:23:05]} 29. Rxc4 {[%clk 0:53:26]} 29... b5 {[%clk 0:23:25]} 30. Re4
{[%clk 0:53:19]} 30... Rf8 {[%clk 0:20:05]} 31. f4 {[%clk 0:52:50]} 31... Be7
{[%clk 0:18:58]} 32. a4 {[%clk 0:50:24]} 32... bxa4 {[%clk 0:19:10]} 33. Rxa4
{[%clk 0:50:46]} 33... Bc5 {[%clk 0:19:31]} 34. Rxa6 {[%clk 0:49:47]} 34... Bf2
{[%clk 0:19:41]} 35. d6 {[%clk 0:50:03]} 35... Rf6 {[%clk 0:19:20]} 36. Ra8#
{[%clk 0:50:27]} 1-0

[Variant "Standard"]
[Site "Europe Echecs"]

[Event "Championnat du monde jeunes U12F"]
[Date "2024.11.20"]
[White "Bogomolnikova, Zlata"]
[Black "Ivaschenko, Anna"]
[WhiteElo "1628"]
[BlackElo "1732"]
[Round "6.23"]
[Result "0-1"]
[TimeControl "5400+30"]

1. f4 {[%clk 1:30:56]} 1... Nf6 {[%clk 1:30:56]} 2. Nf3 {[%clk 1:31:10]} 2... g6
{[%clk 1:30:48]} 3. b3 {[%clk 1:30:04]} 3... Bg7 {[%clk 1:29:39]} 4. Bb2 {[%clk
1:30:21]} 4... O-O {[%clk 1:28:30]} 5. e3 {[%clk 1:28:57]} 5... c5 {[%clk
1:18:09]} 6. Be2 {[%clk 1:25:40]} 6... d5 {[%clk 1:14:24]} 7. O-O {[%clk
1:25:13]} 7... Nc6 {[%clk 1:13:10]} 8. Bb5 {[%clk 1:13:56]} 8... Bg4 {[%clk
0:58:49]} 9. Bxc6 {[%clk 1:12:48]} 9... bxc6 {[%clk 0:57:48]} 10. d3 {[%clk
1:12:15]} 10... Qb6 {[%clk 0:54:51]} 11. Qe1 {[%clk 1:10:27]} 11... Bxf3 {[%clk
0:54:43]} 12. Rxf3 {[%clk 1:10:25]} 12... Rad8 {[%clk 0:42:14]} 13. Nd2 {[%clk
1:03:45]} 13... Rfe8 {[%clk 0:35:00]} 14. Rh3 {[%clk 1:00:07]} 14... c4 {[%clk
0:22:13]} 15. dxc4 {[%clk 0:53:27]} 15... d4 {[%clk 0:21:10]} 16. c5 {[%clk
0:42:04]} 16... Qxc5 {[%clk 0:20:41]} 17. Nc4 {[%clk 0:40:54]} 17... dxe3 {[%clk
0:19:30]} 18. Qxe3 {[%clk 0:40:21]} 18... Qf5 {[%clk 0:15:19]} 19. Qc1 {[%clk
0:20:38]} 19... Ng4 {[%clk 0:09:18]} 20. b4 {[%clk 0:15:30]} 20... e5 {[%clk
0:06:27]} 21. Nxe5 {[%clk 0:12:51]} 21... Bxe5 {[%clk 0:05:26]} 22. Bxe5 {[%clk
0:12:16]} 22... f6 {[%clk 0:05:05]} 23. Bc3 {[%clk 0:07:33]} 23... Re2 {[%clk
0:05:04]} 24. Qf1 {[%clk 0:06:08]} 24... Qxc2 {[%clk 0:04:10]} 25. Rc1 {[%clk
0:03:19]} 25... Rxg2+ {[%clk 0:03:29]} 26. Kh1 {[%clk 0:02:40]} 26... Rxh2+
{[%clk 0:03:33]} 27. Kg1 {[%clk 0:02:42]} 27... Qe2 {[%clk 0:01:47]} 28. Rg3
{[%clk 0:01:25]} 28... Rh1+ {[%clk 0:01:56]} 0-1

[Variant "Standard"]
[Site "Europe Echecs"]